fUSD/lending_fUSD_20250209
["ID","MTS","AMOUNT","RATE_DAILY","PERIOD"]
[352375094,1739067046944,-500.0,0.00010264,2]
[352375095,1739067046954,-500.0,0.00010264,2]
[352375096,1739067046964,-500.0,0.00010264,2]
[352375097,1739067046974,-676.78,0.00010264,2]
[352375098,1739067046983,-709.99386093,0.00010264,2]
[352375099,1739067046995,-565.16613907,0.00010264,2]
[352375100,1739067047005,-19.92586033,0.00010264,2]
[352375101,1739067047016,-967.32,0.00010264,2]
[352375102,1739067047027,-225.89413967,0.00010264,2]
[352375103,1739067047037,-485.75037961,0.00010264,2]
[352375104,1739067047048,-14.24962039,0.00010264,2]
[352375105,1739067047058,-705.18,0.00010264,2]
[352375106,1739067047067,-500.0,0.00010264,2]
[352375107,1739067047077,-886.59,0.00010264,2]
[352375108,1739067047086,-500.0,0.00010264,2]
[352375109,1739067047096,-100.48037961,0.00010264,2]
[352375110,1739067047108,-399.51962039,0.00010264,2]
[352375111,1739067047118,-172.96688191,0.00010264,2]
[352375112,1739067047130,-759.97311809,0.00010264,2]
[352375113,1739067047139,-515.01,0.00010264,2]
[352375114,1739067047149,-168.65760787,0.00010264,2]
[352375115,1739067047168,-331.34239213,0.00010264,2]
[352375116,1739067047178,-623.65,0.00010264,2]
[352375117,1739067047188,-1014.06,0.00010264,2]
[352375118,1739067047198,-500.0,0.00010264,2]
[352375119,1739067047207,-500.0,0.00010265,2]
[352375120,1739067047218,-501.46902258,0.00010265,2]
[352375121,1739067047227,-500.0,0.00010265,2]
[352375122,1739067047236,-500.0,0.00010265,2]
[352375123,1739067047247,-500.0,0.00010265,2]
[352375124,1739067047258,-109.07860529,0.00010265,2]
[352375125,1739067047270,-390.92139471,0.00010265,2]
[352375126,1739067047280,-500.0,0.00010265,2]
[352375127,1739067047290,-500.0,0.00010265,2]
[352375128,1739067047301,-500.0,0.00010265,2]
[352375129,1739067047312,-500.0,0.00010265,2]
[352375130,1739067047322,-512.81394714,0.00010265,2]
[352375131,1739067047332,-500.0,0.00010265,2]
[352375132,1739067047342,-500.0,0.00010265,2]
[352375133,1739067047352,-500.0,0.00010265,2]
[352375134,1739067047362,-516.26206692,0.00010265,2]
[352375135,1739067047372,-500.0,0.00010265,2]
[352375136,1739067047382,-500.0,0.00010265,2]
[352375137,1739067047391,-500.0,0.00010265,2]
[352375138,1739067047402,-500.0,0.00010265,2]
[352375139,1739067047411,-500.0,0.00010265,2]
[352375140,1739067047421,-500.0,0.00010265,2]
[352375141,1739067047431,-711.62,0.00010265,2]
[352375142,1739067047446,-502.98352115,0.00010265,2]
[352375143,1739067047455,-500.0,0.00010265,2]
[352375144,1739067047465,-411.45209465,0.00010265,2]
[352375145,1739067047475,-500.0,0.00010265,2]
[352375146,1739067047485,-500.0,0.00010265,2]
[352375147,1739067047495,-500.0,0.00010265,2]
[352375148,1739067047505,-500.0,0.00010265,2]
[352375149,1739067047516,-500.0,0.00010265,2]
[352375150,1739067047526,-500.0,0.00010265,2]
[352375151,1739067047536,-500.0,0.00010265,2]
[352375152,1739067047547,-500.0,0.00010265,2]
[352375153,1739067047557,-465.15048075,0.00010265,2]
[352375154,1739067047567,-588.3,0.00010265,2]
[352375155,1739067047577,-500.0,0.00010265,2]
[352375156,1739067047587,-500.0,0.00010265,2]
[352375157,1739067047597,-500.0,0.00010265,2]
[352375158,1739067047607,-500.0,0.00010265,2]
[352375159,1739067047617,-500.0,0.00010265,2]
[352375160,1739067047627,-341.31678123,0.00010265,2]
[352375161,1739067047638,-505.85708612,0.00010265,2]
[352375162,1739067047648,-500.0,0.00010265,2]
[352375163,1739067047658,-500.0,0.00010265,2]
[352375164,1739067047667,-500.0,0.00010265,2]
[352375165,1739067047678,-500.0,0.00010265,2]
[352375166,1739067047688,-500.0,0.00010265,2]
[352375167,1739067047698,-500.0,0.00010265,2]
[352375168,1739067047709,-500.0,0.00010265,2]
[352375169,1739067047718,-500.0,0.00010265,2]
[352375170,1739067047728,-500.0,0.00010265,2]
[352375171,1739067047737,-500.0,0.00010265,2]
[352375172,1739067047747,-500.0,0.00010265,2]
[352375173,1739067047757,-500.0,0.00010265,2]
[352375174,1739067047767,-500.0,0.00010265,2]
[352375175,1739067047776,-500.0,0.00010265,2]
[352375176,1739067047786,-500.0,0.00010265,2]
[352375177,1739067047797,-584.11,0.00010265,2]
[352375178,1739067047808,-500.0,0.00010265,2]
[352375179,1739067047818,-500.0,0.00010265,2]
[352375180,1739067047828,-500.0,0.00010265,2]
[352375181,1739067047839,-500.0,0.00010265,2]
[352375182,1739067047849,-500.0,0.00010265,2]
[352375183,1739067047860,-500.0,0.00010265,2]
[352375184,1739067047869,-500.0,0.00010265,2]
[352375185,1739067047880,-500.0,0.00010265,2]
[352375186,1739067047890,-500.0,0.00010265,2]
[352375187,1739067047900,-500.0,0.00010265,2]
[352375188,1739067047911,-500.0,0.00010265,2]
[352375189,1739067047922,-500.0,0.00010265,2]
[352375190,1739067047932,-500.0,0.00010265,2]
[352375191,1739067047942,-500.0,0.00010265,2]
[352375192,1739067047952,-500.0,0.00010265,2]
[352375193,1739067047963,-500.0,0.00010265,2]
[352375194,1739067047973,-529.84,0.00010265,2]
[352375195,1739067047983,-500.0,0.00010265,2]
[352375196,1739067047992,-608.84991808,0.00010265,2]
[352375197,1739067048002,-500.0,0.00010265,2]
[352375198,1739067048012,-500.0,0.00010265,2]
[352375199,1739067048023,-589.59298701,0.00010265,2]
[352375200,1739067048035,-500.0,0.00010265,2]
[352375201,1739067048058,-500.0,0.00010265,2]
[352375202,1739067048082,-645.5,0.00010265,2]
[352375203,1739067048104,-500.0,0.00010265,2]
[352375204,1739067048125,-500.0,0.00010265,2]
[352375205,1739067048144,-500.0,0.00010265,2]
[352375206,1739067048166,-500.0,0.00010265,2]
[352375207,1739067048189,-500.0,0.00010265,2]
[352375208,1739067048209,-500.0,0.00010265,2]
[352375209,1739067048234,-500.0,0.00010265,2]
[352375210,1739067048258,-637.19,0.00010265,2]
[352375211,1739067048279,-508.11497793,0.00010265,2]
[352375212,1739067048302,-500.0,0.00010265,2]
[352375213,1739067048316,-500.0,0.00010265,2]
[352375214,1739067048327,-648.89858,0.00010265,2]
[352375215,1739067048336,-500.0,0.00010265,2]
[352375216,1739067048347,-500.0,0.00010265,2]
[352375217,1739067048357,-500.0,0.00010265,2]
[352375218,1739067048368,-156.57927656,0.00010265,2]
[352375219,1739067048384,-343.42072344,0.00010265,2]
[352375220,1739067048394,-500.0,0.00010265,2]
[352375221,1739067048404,-729.01,0.00010265,2]
[352375222,1739067048413,-471.85,0.00010265,2]
[352375223,1739067048423,-500.0,0.00010265,2]
[352375224,1739067048433,-500.0,0.00010265,2]
[352375225,1739067048447,-500.0,0.00010265,2]
[352375226,1739067048458,-500.0,0.00010265,2]
[352375227,1739067048469,-681.42,0.00010265,2]
[352375228,1739067048480,-500.0,0.00010265,2]
[352375229,1739067048490,-500.0,0.00010265,2]
[352375230,1739067048500,-500.0,0.00010265,2]
[352375231,1739067048510,-500.0,0.00010265,2]
[352375232,1739067048522,-500.0,0.00010265,2]
[352375233,1739067048532,-500.0,0.00010265,2]
[352375234,1739067048542,-500.0,0.00010265,2]
[352375235,1739067048552,-192.74306183,0.00010265,2]
[352375236,1739067048563,-500.0,0.00010265,2]
[352375237,1739067048573,-582.342512,0.00010265,2]
[352375238,1739067048582,-500.0,0.00010265,2]
[352375239,1739067048592,-500.0,0.00010265,2]
[352375240,1739067048601,-500.0,0.00010265,2]
[352375241,1739067048610,-500.0,0.00010265,2]
[352375242,1739067048620,-500.0,0.00010265,2]
[352375243,1739067048629,-500.0,0.00010265,2]
[352375244,1739067048638,-500.0,0.00010265,2]
[352375245,1739067048647,-500.0,0.00010265,2]
[352375246,1739067048657,-773.99,0.00010265,2]
[352375247,1739067048666,-500.0,0.00010265,2]
[352375248,1739067048676,-691.88,0.00010265,2]
[352375249,1739067048685,-340.0,0.00010265,2]
[352375250,1739067048695,-500.0,0.00010265,2]
[352375251,1739067048705,-500.0,0.00010265,2]
[352375252,1739067048715,-500.0,0.00010265,2]
[352375253,1739067048725,-500.0,0.00010265,2]
[352375254,1739067048734,-500.0,0.00010265,2]
[352375255,1739067048744,-345.09,0.00010265,2]
[352375256,1739067048753,-500.0,0.00010265,2]
[352375257,1739067048763,-742.61,0.00010265,2]
[352375258,1739067048773,-500.0,0.00010265,2]
[352375259,1739067048784,-500.0,0.00010265,2]
[352375260,1739067048794,-500.0,0.00010265,2]
[352375261,1739067048804,-500.0,0.00010265,2]
[352375262,1739067048814,-626.31,0.00010265,2]
[352375263,1739067048826,-500.0,0.00010265,2]
[352375264,1739067048839,-500.0,0.00010265,2]
[352375265,1739067048851,-495.55798021,0.00010265,2]
[352375266,1739067048862,-509.43,0.00010265,2]
[352375267,1739067048876,-281.38739833,0.00010265,2]
[352375268,1739067048887,-500.0,0.00010265,2]
[352375269,1739067048898,-314.63353354,0.00010265,2]
[352375270,1739067048909,-585.07,0.00010265,2]
[352375271,1739067048919,-500.0,0.00010265,2]
[352375272,1739067048931,-500.0,0.00010265,2]
[352375273,1739067048942,-609.17,0.00010265,2]
[352375274,1739067048953,-500.0,0.00010265,2]
[352375275,1739067048965,-500.0,0.00010265,2]
[352375276,1739067048976,-637.11,0.00010265,2]
[352375277,1739067048988,-585.94741323,0.00010265,2]
[352375278,1739067048998,-500.0,0.00010265,2]
[352375279,1739067049010,-500.0,0.00010265,2]
[352375280,1739067049097,-500.0,0.00010265,2]
[352375281,1739067049108,-500.0,0.00010265,2]
[352375282,1739067049119,-500.0,0.00010265,2]
[352375283,1739067049131,-500.0,0.00010265,2]
[352375284,1739067049142,-500.0,0.00010265,2]
[352375285,1739067049152,-500.0,0.00010265,2]
[352375286,1739067049163,-500.0,0.00010265,2]
[352375287,1739067049175,-500.0,0.00010265,2]
[352375288,1739067049186,-500.0,0.00010265,2]
[352375289,1739067049196,-500.0,0.00010265,2]
[352375290,1739067049206,-647.21027455,0.00010265,2]
[352375291,1739067049218,-500.0,0.00010265,2]
[352375292,1739067049229,-500.0,0.00010265,2]
[352375293,1739067049240,-500.0,0.00010265,2]
[352375294,1739067049252,-500.0,0.00010265,2]
[352375295,1739067049263,-500.0,0.00010265,2]
[352375296,1739067049273,-500.0,0.00010265,2]
[352375297,1739067049284,-531.11,0.00010265,2]
[352375298,1739067049298,-732.35,0.00010265,2]
[352375299,1739067049308,-504.4655004,0.00010265,2]
[352375300,1739067049318,-500.0,0.00010265,2]
[352375301,1739067049328,-508.13,0.00010265,2]
[352375302,1739067049338,-500.0,0.00010265,2]
[352375303,1739067049347,-649.4,0.00010265,2]
[352375304,1739067049357,-500.0,0.00010265,2]
[352375305,1739067049367,-500.0,0.00010265,2]
[352375306,1739067049376,-1299.56,0.00010265,2]
[352375307,1739067049386,-538.42,0.00010265,2]
[352375308,1739067049395,-226.99,0.00010265,2]
[352375309,1739067049405,-749.22,0.00010265,2]
[352375310,1739067049414,-430.2680979,0.00010265,2]
[352375311,1739067049513,-69.7319021,0.00010265,2]
[352375312,1739067049524,-505.51118566,0.00010265,2]
[352375313,1739067049534,-475.5215822,0.00010265,2]
[352375314,1739067049546,-24.4784178,0.00010265,2]
[352375315,1739067049556,-500.0,0.00010265,2]
[352375316,1739067049565,-500.0,0.00010265,2]
[352375317,1739067049574,-500.0,0.00010265,2]
[352375318,1739067049584,-500.0,0.00010265,2]
[352375319,1739067049593,-350.0,0.00010265,2]
[352375320,1739067049602,-500.0,0.00010265,2]
[352375321,1739067049612,-555.49,0.00010265,2]
[352375322,1739067049621,-500.0,0.00010265,2]
[352375323,1739067049630,-500.0,0.00010265,2]
[352375324,1739067049640,-500.0,0.00010265,2]
[352375325,1739067049649,-500.0,0.00010265,2]
[352375326,1739067049659,-500.0,0.00010265,2]
[352375327,1739067049668,-796.32,0.00010265,2]
[352375328,1739067049678,-500.0,0.00010265,2]
[352375329,1739067049687,-489.82884152,0.00010265,2]
[352375330,1739067049697,-593.04,0.00010265,2]
[352375331,1739067049706,-500.0,0.00010265,2]
[352375332,1739067049716,-500.0,0.00010265,2]
[352375334,1739067049725,-500.0,0.00010265,2]
[352375336,1739067049735,-1796.39,0.00010265,2]
[352375338,1739067049744,-500.0,0.00010265,2]
[352375340,1739067049753,-500.0,0.00010265,2]
[352375342,1739067049763,-877.75,0.00010265,2]
[352375344,1739067049772,-500.0,0.00010265,2]
[352375346,1739067049782,-500.0,0.00010265,2]
[352375348,1739067049791,-500.0,0.00010265,2]
[352375350,1739067049800,-500.0,0.00010265,2]
[352375352,1739067049810,-554.99402692,0.00010265,2]
[352375354,1739067049821,-500.0,0.00010265,2]
[352375356,1739067049831,-500.0,0.00010265,2]
[352375358,1739067049841,-694.64,0.00010265,2]
[352375360,1739067049851,-517.41,0.00010265,2]
[352375362,1739067049860,-500.0,0.00010265,2]
[352375364,1739067049870,-1768.32,0.00010265,2]
[352375366,1739067049880,-500.0,0.00010265,2]
[352375368,1739067049890,-500.0,0.00010265,2]
[352375370,1739067049899,-500.0,0.00010265,2]
[352375372,1739067049909,-500.0,0.00010265,2]
[352375374,1739067049919,-354.83628206,0.00010265,2]
[352375377,1739067049932,-145.16371794,0.00010265,2]
[352375379,1739067049942,-182.64848109,0.00010265,2]
[352375381,1739067049954,-307.35151891,0.00010265,2]
[352375383,1739067049964,-500.0,0.00010265,2]
[352375385,1739067049974,-500.0,0.00010265,2]
[352375387,1739067049984,-1524.66,0.00010265,2]
[352375389,1739067049995,-1495.14,0.00010265,2]
[352375391,1739067050005,-500.0,0.00010265,2]
[352375393,1739067050015,-500.0,0.00010265,2]
[352375395,1739067050025,-1116.07,0.00010265,2]
[352375396,1739067050035,-500.0,0.00010265,2]
[352375397,1739067050045,-500.0,0.00010265,2]
[352375398,1739067050055,-500.0,0.00010265,2]
[352375399,1739067050065,-1428.31,0.00010265,2]
[352375400,1739067050075,-500.0,0.00010265,2]
[352375401,1739067050085,-500.0,0.00010265,2]
[352375402,1739067050096,-500.0,0.00010265,2]
[352375403,1739067050106,-500.0,0.00010265,2]
[352375404,1739067050116,-1227.35,0.00010265,2]
[352375405,1739067050127,-500.0,0.00010265,2]
[352375406,1739067050137,-500.0,0.00010265,2]
[352375407,1739067050147,-1509.04,0.00010265,2]
[352375409,1739067050157,-815.79,0.00010265,2]
[352375410,1739067050167,-500.0,0.00010265,2]
[352375411,1739067050177,-500.0,0.00010265,2]
[352375412,1739067050187,-565.77,0.00010265,2]
[352375413,1739067050198,-383.41191408,0.00010265,2]
[352375414,1739067050223,-120.80326831,0.00010265,2]
[352375415,1739067050233,-554.62168669,0.00010265,2]
[352375432,1739067050593,-1474.64,0.00010128,2]
[352375434,1739067050603,-345.74831331,0.00010265,2]
[352375436,1739067050619,-504.24295668,0.00010265,2]
[352375438,1739067050630,-500.0,0.00010265,2]
[352375440,1739067050639,-1051.97,0.00010265,2]
[352375442,1739067050649,-500.0,0.00010265,2]
[352375444,1739067050659,-500.0,0.00010265,2]
[352375446,1739067050669,-500.0,0.00010265,2]
[352375448,1739067050680,-657.94,0.00010265,2]
[352375450,1739067050690,-500.0,0.00010265,2]
[352375453,1739067050701,-500.0,0.00010265,2]
[352375455,1739067050711,-768.65,0.00010265,2]
[352375457,1739067050722,-218.33676849,0.00010265,2]
[352375459,1739067050732,-1133.2,0.00010265,2]
[352375461,1739067050742,-1223.67,0.00010265,2]
[352375463,1739067050753,-505.32712246,0.00010265,2]
[352375465,1739067050763,-500.0,0.00010265,2]
[352375467,1739067050774,-510.36251322,0.00010265,2]
[352375469,1739067050784,-500.0,0.00010265,2]
[352375472,1739067050794,-164.82935765,0.00010265,2]
[352375474,1739067050805,-508.96,0.00010265,2]
[352375476,1739067050815,-500.0,0.00010265,2]
[352375478,1739067050826,-1378.2,0.00010265,2]
[352375480,1739067050837,-1887.74,0.00010265,2]
[352375482,1739067050848,-500.0,0.00010265,2]
[352375484,1739067050859,-500.0,0.00010265,2]
[352375487,1739067050869,-500.0,0.00010265,2]
[352375489,1739067050880,-831.44,0.00010265,2]
[352375491,1739067050891,-500.0,0.00010265,2]
[352375493,1739067050902,-500.0,0.00010265,2]
[352375495,1739067050914,-759.35,0.00010265,2]
[352375497,1739067050924,-500.0,0.00010265,2]
[352375499,1739067050935,-500.0,0.00010265,2]
[352375501,1739067050945,-1864.74,0.00010265,2]
[352375504,1739067050956,-500.0,0.00010265,2]
[352375506,1739067050966,-500.0,0.00010265,2]
[352375508,1739067050977,-500.0,0.00010265,2]
[352375510,1739067050988,-500.0,0.00010265,2]
[352375512,1739067050999,-500.0,0.00010265,2]
[352375515,1739067051017,-807.22,0.00010265,2]
[352375517,1739067051027,-500.0,0.00010265,2]
[352375519,1739067051039,-500.0,0.00010265,2]
[352375521,1739067051049,-500.0,0.00010265,2]
[352375523,1739067051059,-500.0,0.00010265,2]
[352375525,1739067051071,-500.0,0.00010265,2]
[352375528,1739067051084,-240.76,0.00010265,2]
[352375530,1739067051098,-500.0,0.00010265,2]
[352375533,1739067051111,-500.0,0.00010265,2]
[352375535,1739067051122,-546.5,0.00010265,2]
[352375537,1739067051133,-1310.03,0.00010265,2]
[352375539,1739067051145,-2126.08,0.00010265,2]
[352375542,1739067051157,-562.69,0.00010265,2]
[352375544,1739067051169,-500.0,0.00010265,2]
[352375546,1739067051181,-495.36148762,0.00010265,2]
[352375549,1739067051194,-903.08,0.00010265,2]
[352375551,1739067051207,-500.0,0.00010265,2]
[352375553,1739067051218,-500.0,0.00010265,2]
[352375556,1739067051230,-500.0,0.00010265,2]
[352375558,1739067051241,-500.0,0.00010265,2]
[352375560,1739067051251,-500.0,0.00010265,2]
[352375562,1739067051264,-1645.07,0.00010265,2]
[352375565,1739067051277,-1066.94,0.00010265,2]
[352375567,1739067051288,-500.0,0.00010265,2]
[352375569,1739067051300,-500.0,0.00010265,2]
[352375571,1739067051313,-500.0,0.00010265,2]
[352375574,1739067051325,-500.0,0.00010265,2]
[352375576,1739067051338,-500.0,0.00010265,2]
[352375578,1739067051349,-500.0,0.00010265,2]
[352375581,1739067051362,-500.0,0.00010265,2]
[352375583,1739067051375,-975.47,0.00010265,2]
[352375585,1739067051387,-1630.36,0.00010265,2]
[352375588,1739067051399,-500.0,0.00010265,2]
[352375590,1739067051410,-500.0,0.00010265,2]
[352375592,1739067051422,-500.0,0.00010265,2]
[352375595,1739067051435,-500.0,0.00010265,2]
[352375597,1739067051449,-500.0,0.00010265,2]
[352375599,1739067051460,-1170.95,0.00010265,2]
[352375601,1739067051471,-500.0,0.00010265,2]
[352375604,1739067051485,-2391.75,0.00010265,2]
[352375606,1739067051495,-500.0,0.00010265,2]
[352375608,1739067051507,-500.0,0.00010265,2]
[352375610,1739067051520,-1472.78,0.00010265,2]
[352375613,1739067051535,-500.0,0.00010265,2]
[352375614,1739067051545,-500.0,0.00010265,2]
[352375615,1739067051555,-1474.64,0.00010265,2]
[352375616,1739067051566,-500.0,0.00010266,2]
[352375617,1739067051578,-500.0,0.00010266,2]
[352375618,1739067051591,-500.0,0.00010266,2]
[352375619,1739067051605,-500.0,0.00010266,2]
[352375620,1739067051616,-288.95228301,0.00010266,2]
[352375621,1739067051626,-500.0,0.00010266,2]
[352375622,1739067051636,-503.47416746,0.00010266,2]
[352375623,1739067051648,-500.0,0.00010266,2]
[352375624,1739067051659,-500.0,0.00010266,2]
[352375625,1739067051670,-500.0,0.00010266,2]
[352375626,1739067051683,-500.0,0.00010266,2]
[352375627,1739067051695,-500.0,0.00010266,2]
[352375628,1739067051706,-500.0,0.00010266,2]
[352375630,1739067051717,-500.0,0.00010266,2]
[352375633,1739067051729,-500.0,0.00010266,2]
[352375635,1739067051740,-504.14580539,0.00010266,2]
[352375637,1739067051751,-500.0,0.00010266,2]
[352375639,1739067051762,-500.0,0.00010266,2]
[352375641,1739067051773,-500.0,0.00010266,2]
[352375643,1739067051783,-500.0,0.00010266,2]
[352375646,1739067051794,-500.0,0.00010266,2]
[352375648,1739067051805,-500.0,0.00010266,2]
[352375650,1739067051816,-500.0,0.00010266,2]
[352375652,1739067051827,-500.0,0.00010266,2]
[352375654,1739067051839,-500.0,0.00010266,2]
[352375657,1739067051850,-500.0,0.00010266,2]
[352375659,1739067051861,-500.0,0.00010266,2]
[352375661,1739067051873,-500.0,0.00010266,2]
[352375663,1739067051884,-500.0,0.00010266,2]
[352375665,1739067051894,-500.0,0.00010266,2]
[352375667,1739067051905,-500.0,0.00010266,2]
[352375670,1739067051916,-500.0,0.00010266,2]
[352375672,1739067051927,-500.0,0.00010266,2]
[352375674,1739067051938,-500.0,0.00010266,2]
[352375676,1739067051950,-500.0,0.00010266,2]
[352375678,1739067051961,-500.0,0.00010266,2]
[352375681,1739067051972,-500.0,0.00010266,2]
[352375683,1739067051983,-500.0,0.00010266,2]
[352375685,1739067052004,-500.0,0.00010266,2]
[352375687,1739067052028,-500.0,0.00010266,2]
[352375689,1739067052052,-500.0,0.00010266,2]
[352375691,1739067052075,-500.0,0.00010266,2]
[352375693,1739067052099,-500.0,0.00010266,2]
[352375696,1739067052122,-500.0,0.00010266,2]
[352375698,1739067052145,-505.87942166,0.00010266,2]
[352375700,1739067052169,-343.52,0.00010266,2]
[352375702,1739067052193,-555.50286006,0.00010266,2]
[352375704,1739067052216,-500.0,0.00010266,2]
[352375706,1739067052239,-500.0,0.00010266,2]
[352375708,1739067052262,-500.0,0.00010266,2]
[352375710,1739067052285,-500.0,0.00010266,2]
[352375712,1739067052304,-427.08311155,0.00010266,2]
[352375715,1739067052317,-500.0,0.00010266,2]
[352375717,1739067052328,-500.0,0.00010266,2]
[352375719,1739067052339,-500.0,0.00010266,2]
[352375721,1739067052350,-500.0,0.00010266,2]
[352375723,1739067052361,-500.0,0.00010266,2]
[352375725,1739067052372,-290.24447486,0.00010266,2]
[352375727,1739067052383,-500.0,0.00010266,2]
[352375729,1739067052394,-564.52183764,0.00010266,2]
[352375732,1739067052405,-359.11,0.00010266,2]
[352375734,1739067052415,-500.0,0.00010266,2]
[352375736,1739067052426,-500.0,0.00010266,2]
[352375738,1739067052441,-502.20983069,0.00010266,2]
[352375740,1739067052451,-500.0,0.00010266,2]
[352375742,1739067052463,-500.0,0.00010266,2]
[352375745,1739067052475,-500.0,0.00010266,2]
[352375747,1739067052486,-500.0,0.00010266,2]
[352375749,1739067052497,-500.0,0.00010266,2]
[352375751,1739067052511,-500.0,0.00010266,2]
[352375753,1739067052522,-517.22741005,0.00010266,2]
[352375755,1739067052533,-501.86895722,0.00010266,2]
[352375757,1739067052544,-500.0,0.00010266,2]
[352375760,1739067052555,-500.0,0.00010266,2]
[352375762,1739067052566,-180.67341566,0.00010266,2]
[352375764,1739067052577,-511.22277683,0.00010266,2]
[352375766,1739067052587,-65.44588046,0.00010266,2]
[352375769,1739067052603,-434.55411954,0.00010266,2]
[352375771,1739067052614,-500.0,0.00010266,2]
[352375773,1739067052625,-500.0,0.00010266,2]
[352375776,1739067052635,-500.0,0.00010266,2]
[352375778,1739067052646,-238.86777604,0.00010266,2]
[352375780,1739067052657,-500.0,0.00010266,2]
[352375782,1739067052667,-500.0,0.00010266,2]
[352375784,1739067052678,-506.50210652,0.00010266,2]
[352375786,1739067052689,-500.0,0.00010266,2]
[352375788,1739067052699,-645.22650619,0.00010266,2]
[352375791,1739067052711,-163.22016652,0.00010302,2]
[352375793,1739067052722,-153.78064735,0.00010303,2]
[352375795,1739067052732,-1794.9,0.00010401,2]
[352375797,1739067052743,-4050.41,0.00010401,2]
[352375800,1739067052756,-954.55,0.00010401,2]
[352375802,1739067052766,-813.29,0.00010401,2]
[352375804,1739067052777,-723.92,0.00010401,2]
[352375806,1739067052788,-2045.06,0.00010401,2]
[352375808,1739067052799,-500.0,0.00010401,2]
[352375810,1739067052810,-610.55,0.00010401,2]
[352375813,1739067052820,-695.36,0.00010401,2]
[352375815,1739067052831,-843.82,0.00010401,2]
[352375817,1739067052842,-925.11,0.00010401,2]
[352375819,1739067052853,-1054.0,0.00010401,2]
[352375821,1739067052865,-571.04,0.00010401,2]
[352375824,1739067052875,-518.49,0.00010401,2]
[352375826,1739067052886,-1000.0,0.00010401,2]
[352375828,1739067052897,-754.2,0.00010401,2]
[352375830,1739067052907,-508.47736457,0.00010401,2]
[352375832,1739067052919,-294.67131427,0.00010401,2]
[352375835,1739067052933,-979.28868573,0.00010401,2]
[352375837,1739067052945,-1423.17,0.00010401,2]
[352375839,1739067052955,-626.18,0.00010401,2]
[352375841,1739067052967,-1592.84,0.00010401,2]
[352375844,1739067052978,-686.52131427,0.00010401,2]
[352375846,1739067052991,-391.95868573,0.00010401,2]
[352375848,1739067053000,-524.32,0.00010401,2]
[352375850,1739067053009,-500.0,0.00010401,2]
[352375852,1739067053019,-681.95,0.00010401,2]
[352375854,1739067053028,-500.0,0.00010401,2]
[352375856,1739067053037,-414.31898777,0.00010401,2]
[352375865,1739067053114,-85.68101223,0.00010401,2]
[352375868,1739067053123,-1124.52070476,0.00010401,2]
[352375870,1739067053134,-267.47929524,0.00010401,2]
[352375872,1739067053144,-1097.98,0.00010401,2]
[352375874,1739067053153,-2604.13880573,0.00010401,2]
[352375876,1739067053165,-146.49119427,0.00010401,2]
[352375878,1739067053173,-1008.66,0.00010401,2]
[352375880,1739067053182,-302.84880573,0.00010401,2]